fUST/lending_fUST_20240824
["ID","MTS","AMOUNT","RATE_DAILY","PERIOD"]
[335710455,1724458238457,-20222.14753801,0.0001212,2]
[335710457,1724458238467,-154.72922386,0.00012629,2]
[335710459,1724458238477,-154.72922386,0.00012689,2]
[335710461,1724458238487,-934.07929589,0.00012689,2]
[335710463,1724458238498,-154.72922386,0.00012689,2]
[335710465,1724458238508,-154.72922386,0.00012779,2]
[335710467,1724458238518,-780.35335208,0.00012779,2]
[335710470,1724458238531,-1022.88139081,0.00012782,2]
[335710472,1724458238542,-729.07882833,0.00012782,2]
[335710474,1724458238552,-210.32349268,0.00012782,2]
[335710476,1724458238563,-190.14748204,0.00012886,2]
[335710480,1724458238585,-160.77115221,0.00012886,2]
[335710482,1724458238596,-174.90537191,0.00012886,2]
[335710484,1724458238607,-811.1651197,0.00012898,2]
[335710486,1724458238617,-535.06078951,0.00012898,2]
[335710488,1724458238628,-154.76011872,0.00012898,2]
[335710490,1724458238638,-535.06078951,0.00012898,2]
[335710493,1724458238649,-817.77880387,0.00012898,2]
[335710495,1724458238659,-5907.14511495,0.000129,2]
[335710497,1724458238669,-157.15769108,0.00012934,2]
[335710499,1724458238680,-154.8991765,0.00012934,2]
[335710501,1724458238690,-288.40254199,0.00012934,2]
[335710503,1724458238701,-776.60185887,0.00012934,2]
[335710505,1724458238712,-558.83064084,0.00012934,2]
[335710507,1724458238722,-493.52644239,0.00012971,2]
[335710509,1724458238733,-154.72922386,0.00012971,2]
[335710512,1724458238743,-154.82192698,0.00012971,2]
[335710514,1724458238753,-320.39554735,0.00012971,2]
[335710516,1724458238763,-415.43722214,0.00012971,2]
[335710518,1724458238773,-155.37616833,0.00012971,2]
[335710520,1724458238784,-569.78751732,0.00012971,2]
[335710522,1724458238796,-811.71027722,0.00012985,2]
[335710524,1724458238806,-156.91314124,0.00012985,2]
[335710526,1724458238815,-811.71027722,0.00012985,2]
[335710528,1724458238824,-303.97484667,0.00012985,2]
[335710530,1724458238834,-303.97484667,0.00012989,2]
[335710532,1724458238844,-9663.17336824,0.00012989,2]
[335710534,1724458238854,-521.54236624,0.00012999,2]
[335710536,1724458238865,-862.83835129,0.00013,2]
[335710538,1724458238875,-888.70688175,0.00013051,2]
[335710540,1724458238886,-5907.14511492,0.00013074,2]
[335710542,1724458238895,-160.5723062,0.00013233,2]
[335710544,1724458238905,-420.0,0.00013302,2]
[335710546,1724458238915,-420.0,0.00013331,2]
[335710548,1724458238924,-495.34936838,0.00013596,2]
[335710549,1724458238933,-14351.82404994,0.00013598,2]
[335710551,1724458238942,-2640.42603378,0.00013598,2]
[335710553,1724458238952,-3000.0,0.0001367,2]
[335710555,1724458238961,-500.0,0.00013673,2]
[335710556,1724458238970,-500.0,0.00013673,2]
[335710558,1724458238980,-154.72922386,0.00013697,2]
[335710560,1724458238990,-500.0,0.00013698,2]
[335710562,1724458238999,-291.90426165,0.00013698,2]
[335710564,1724458239008,-1032.06,0.00013698,2]
[335710565,1724458239018,-500.0,0.00013698,2]
[335710566,1724458239028,-1630.07,0.00013698,2]
[335710567,1724458239037,-500.0,0.00013698,2]
[335710568,1724458239047,-500.0,0.00013698,2]
[335710569,1724458239056,-500.0,0.00013698,2]
[335710570,1724458239066,-500.0,0.00013698,2]
[335710571,1724458239075,-542.2001206,0.00013698,2]
[335710572,1724458239084,-500.0,0.00013698,2]
[335710573,1724458239094,-590.81,0.00013698,2]
[335710574,1724458239103,-500.0,0.00013698,2]
[335710575,1724458239114,-501.53474454,0.00013698,2]
[335710576,1724458239124,-500.0,0.00013698,2]
[335710577,1724458239136,-985.45,0.00013698,2]
[335710578,1724458239145,-500.0,0.00013698,2]
[335710579,1724458239154,-500.0,0.00013698,2]
[335710580,1724458239164,-500.0,0.00013698,2]
[335710581,1724458239174,-500.0,0.00013698,2]
[335710582,1724458239184,-500.0,0.00013698,2]
[335710583,1724458239194,-500.0,0.00013698,2]
[335710584,1724458239210,-500.0,0.00013698,2]
[335710585,1724458239219,-500.0,0.00013698,2]
[335710586,1724458239229,-500.0,0.00013698,2]
[335710587,1724458239239,-500.0,0.00013698,2]
[335710588,1724458239248,-2522.19,0.00013698,2]
[335710589,1724458239258,-501.05200541,0.00013698,2]
[335710590,1724458239267,-500.0,0.00013698,2]
[335710591,1724458239277,-1076.88,0.00013698,2]
[335710592,1724458239287,-500.0,0.00013698,2]
[335710593,1724458239297,-500.0,0.00013698,2]
[335710594,1724458239307,-500.0,0.00013698,2]
[335710595,1724458239317,-762.88,0.00013698,2]
[335710596,1724458239327,-500.0,0.00013698,2]
[335710597,1724458239337,-233.72308271,0.00013698,2]
[335710598,1724458239348,-682.48627222,0.00013698,2]
[335710599,1724458239357,-495.02379133,0.00013698,2]
[335710600,1724458239367,-682.48627222,0.00013698,2]
[335710601,1724458239376,-682.48627222,0.00013698,2]
[335710602,1724458239389,-682.48627222,0.00013698,2]
[335710603,1724458239399,-682.48627222,0.00013698,2]
[335710604,1724458239409,-682.48627222,0.00013698,2]
[335710605,1724458239419,-682.48627222,0.00013698,2]
[335710606,1724458239428,-682.48627222,0.00013698,2]
[335710607,1724458239438,-682.48627222,0.00013698,2]
[335710608,1724458239448,-682.48627222,0.00013698,2]
[335710609,1724458239458,-500.0,0.00013698,2]
[335710610,1724458239468,-682.48627222,0.00013698,2]
[335710611,1724458239478,-682.48627222,0.00013698,2]
[335710612,1724458239488,-772.05,0.00013698,2]
[335710613,1724458239498,-682.48627222,0.00013698,2]
[335710614,1724458239508,-682.48627222,0.00013698,2]
[335710615,1724458239519,-682.48627222,0.00013698,2]
[335710616,1724458239528,-682.48627222,0.00013698,2]
[335710617,1724458239538,-682.48627222,0.00013698,2]
[335710618,1724458239548,-682.48627222,0.00013698,2]
[335710619,1724458239559,-682.48627222,0.00013698,2]
[335710620,1724458239570,-622.32213944,0.00013698,2]
[335710621,1724458239580,-682.48627222,0.00013698,2]
[335710622,1724458239590,-682.48627222,0.00013698,2]
[335710623,1724458239601,-500.0,0.00013698,2]
[335710624,1724458239611,-500.0,0.00013698,2]
[335710625,1724458239621,-603.74,0.00013698,2]
[335710626,1724458239633,-500.0,0.00013698,2]
[335710627,1724458239643,-500.0,0.00013698,2]
[335710628,1724458239652,-500.0,0.00013698,2]
[335710629,1724458239663,-750.73489946,0.00013698,2]
[335710630,1724458239672,-750.73489946,0.00013698,2]
[335710631,1724458239681,-750.73489946,0.00013698,2]
[335710632,1724458239691,-750.73489946,0.00013698,2]
[335710633,1724458239701,-750.73489946,0.00013698,2]
[335710634,1724458239711,-750.73489946,0.00013698,2]
[335710635,1724458239721,-500.0,0.00013698,2]
[335710636,1724458239731,-500.0,0.00013698,2]
[335710637,1724458239741,-500.0,0.00013698,2]
[335710638,1724458239755,-500.0,0.00013698,2]
[335710639,1724458239765,-500.0,0.00013698,2]
[335710640,1724458239777,-500.0,0.00013698,2]
[335710641,1724458239789,-826.66,0.00013698,2]
[335710643,1724458239799,-500.0,0.00013698,2]
[335710644,1724458239809,-705.68,0.00013698,2]
[335710645,1724458239822,-500.0,0.00013698,2]
[335710646,1724458239833,-500.0,0.00013698,2]
[335710647,1724458239842,-500.0,0.00013698,2]
[335710648,1724458239853,-500.0,0.00013698,2]
[335710649,1724458239863,-500.0,0.00013698,2]
[335710650,1724458239875,-509.92522481,0.00013698,2]
[335710651,1724458239890,-500.0,0.00013698,2]
[335710652,1724458239900,-500.0,0.00013698,2]
[335710653,1724458239910,-500.0,0.00013698,2]
[335710654,1724458239920,-500.0,0.00013698,2]
[335710655,1724458239930,-500.0,0.00013698,2]
[335710656,1724458239941,-573.75,0.00013698,2]
[335710657,1724458239952,-1081.19,0.00013698,2]
[335710658,1724458239962,-500.0,0.00013698,2]
[335710663,1724458240254,-330.78776455,0.00013698,2]
[335710664,1724458240265,-500.0,0.00013698,2]
[335710665,1724458240275,-519.57,0.00013698,2]
[335710666,1724458240284,-500.0,0.00013698,2]
[335710667,1724458240294,-518.74,0.00013698,2]
[335710668,1724458240304,-1268.6,0.00013698,2]
[335710669,1724458240314,-822.22,0.00013698,2]
[335710670,1724458240324,-687.36,0.00013698,2]
[335710671,1724458240334,-2268.62,0.00013698,2]
[335710672,1724458240344,-500.0,0.00013698,2]
[335710673,1724458240353,-500.0,0.00013698,2]
[335710674,1724458240363,-500.0,0.00013698,2]
[335710675,1724458240373,-500.0,0.00013698,2]
[335710676,1724458240385,-500.0,0.00013698,2]
[335710677,1724458240394,-500.0,0.00013698,2]
[335710678,1724458240403,-160.88080564,0.00013698,2]
[335710679,1724458240413,-500.0,0.00013698,2]
[335710680,1724458240423,-500.0,0.00013698,2]
[335710681,1724458240432,-1501.12,0.00013698,2]
[335710682,1724458240442,-710.42,0.00013698,2]
[335710683,1724458240452,-500.0,0.00013698,2]
[335710684,1724458240462,-1309.15,0.00013698,2]
[335710685,1724458240472,-500.0,0.00013698,2]
[335710686,1724458240483,-779.44,0.00013698,2]
[335710687,1724458240494,-500.0,0.00013698,2]
[335710688,1724458240504,-500.0,0.00013698,2]
[335710689,1724458240514,-548.69,0.00013698,2]
[335710690,1724458240524,-1562.92,0.00013698,2]
[335710691,1724458240534,-501.2744033,0.00013698,2]
[335710692,1724458240544,-500.0,0.00013698,2]
[335710693,1724458240555,-500.0,0.00013698,2]
[335710694,1724458240566,-500.0,0.00013698,2]
[335710695,1724458240576,-722.61,0.00013698,2]
[335710696,1724458240586,-500.0,0.00013698,2]
[335710697,1724458240596,-500.0,0.00013698,2]
[335710698,1724458240606,-500.0,0.00013698,2]
[335710699,1724458240615,-500.0,0.00013698,2]
[335710700,1724458240625,-1152.63,0.00013698,2]
[335710701,1724458240637,-500.0,0.00013698,2]
[335710702,1724458240647,-500.0,0.00013698,2]
[335710703,1724458240658,-1305.48,0.00013698,2]
[335710704,1724458240668,-500.0,0.00013698,2]
[335710705,1724458240678,-500.0,0.00013698,2]
[335710706,1724458240688,-500.0,0.00013698,2]
[335710707,1724458240698,-500.0,0.00013698,2]
[335710708,1724458240708,-790.34,0.00013698,2]
[335710709,1724458240718,-500.0,0.00013698,2]
[335710710,1724458240727,-500.0,0.00013698,2]
[335710711,1724458240737,-500.0,0.00013698,2]
[335710712,1724458240746,-500.0,0.00013698,2]
[335710713,1724458240755,-500.0,0.00013698,2]
[335710714,1724458240765,-500.0,0.00013698,2]
[335710715,1724458240775,-150.88759461,0.00013698,2]
[335710716,1724458240785,-500.0,0.00013698,2]
[335710717,1724458240798,-742.3,0.00013698,2]
[335710718,1724458240809,-500.0,0.00013698,2]
[335710719,1724458240819,-500.0,0.00013698,2]
[335710720,1724458240830,-500.0,0.00013698,2]
[335710721,1724458240840,-1195.81,0.00013698,2]
[335710722,1724458240851,-500.0,0.00013698,2]
[335710723,1724458240863,-500.0,0.00013698,2]
[335710724,1724458240874,-500.0,0.00013698,2]
[335710725,1724458240885,-500.0,0.00013698,2]
[335710726,1724458240894,-500.0,0.00013698,2]
[335710727,1724458240903,-500.0,0.00013698,2]
[335710728,1724458240912,-500.0,0.00013698,2]
[335710729,1724458240922,-500.0,0.00013698,2]
[335710730,1724458240932,-1425.28,0.00013698,2]
[335710731,1724458240942,-500.0,0.00013698,2]
[335710732,1724458240951,-500.0,0.00013698,2]
[335710733,1724458240963,-500.0,0.00013698,2]
[335710734,1724458240973,-500.0,0.00013698,2]
[335710735,1724458240983,-500.0,0.00013698,2]
[335710736,1724458240992,-691.41,0.00013698,2]
[335710737,1724458241001,-994.07,0.00013698,2]
[335710738,1724458241011,-500.0,0.00013698,2]
[335710739,1724458241020,-500.0,0.00013698,2]
[335710740,1724458241029,-265.89318957,0.00013698,2]
[335710741,1724458241038,-1641.75,0.00013698,2]
[335710742,1724458241048,-500.0,0.00013698,2]
[335710743,1724458241057,-500.0,0.00013698,2]
[335710744,1724458241066,-1042.04,0.00013698,2]
[335710745,1724458241076,-500.0,0.00013698,2]
[335710746,1724458241085,-500.0,0.00013698,2]
[335710747,1724458241095,-500.0,0.00013698,2]
[335710748,1724458241104,-500.0,0.00013698,2]
[335710749,1724458241113,-500.0,0.00013698,2]
[335710750,1724458241123,-500.0,0.00013698,2]
[335710751,1724458241133,-1920.3,0.00013698,2]
[335710752,1724458241143,-500.0,0.00013698,2]
[335710753,1724458241153,-500.0,0.00013698,2]
[335710754,1724458241162,-500.0,0.00013698,2]
[335710755,1724458241171,-500.0,0.00013698,2]
[335710756,1724458241180,-606.43,0.00013698,2]
[335710757,1724458241189,-500.0,0.00013698,2]
[335710758,1724458241199,-500.0,0.00013698,2]
[335710759,1724458241208,-500.0,0.00013698,2]
[335710760,1724458241218,-500.0,0.00013698,2]
[335710761,1724458241227,-500.0,0.00013698,2]
[335710762,1724458241237,-500.0,0.00013698,2]
[335710763,1724458241246,-500.0,0.00013698,2]
[335710764,1724458241255,-500.0,0.00013698,2]
[335710765,1724458241265,-500.0,0.00013698,2]
[335710766,1724458241275,-500.0,0.00013698,2]
[335710767,1724458241284,-500.0,0.00013698,2]
[335710768,1724458241294,-500.0,0.00013698,2]
[335710769,1724458241304,-548.6,0.00013698,2]
[335710770,1724458241313,-500.0,0.00013698,2]
[335710771,1724458241322,-500.0,0.00013698,2]
[335710772,1724458241332,-500.0,0.00013698,2]
[335710773,1724458241341,-500.0,0.00013698,2]
[335710774,1724458241351,-500.0,0.00013698,2]
[335710775,1724458241360,-500.0,0.00013698,2]
[335710776,1724458241369,-500.0,0.00013698,2]
[335710777,1724458241378,-193.3289648,0.00013698,2]
[335710778,1724458241389,-531.16842033,0.00013698,2]
[335710779,1724458241397,-500.0,0.00013698,2]
[335710780,1724458241407,-500.0,0.00013698,2]
[335710781,1724458241416,-500.0,0.00013698,2]
[335710782,1724458241425,-500.0,0.00013698,2]
[335710783,1724458241434,-500.0,0.00013698,2]
[335710784,1724458241443,-770.54,0.00013698,2]
[335710785,1724458241452,-500.0,0.00013698,2]
[335710786,1724458241462,-500.0,0.00013698,2]
[335710787,1724458241471,-1107.58,0.00013698,2]
[335710788,1724458241480,-150.0,0.00013698,2]
[335710789,1724458241489,-1107.58,0.00013698,2]
[335710790,1724458241498,-1107.58,0.00013698,2]
[335710791,1724458241507,-1107.58,0.00013698,2]
[335710792,1724458241516,-1107.58,0.00013698,2]
[335710793,1724458241526,-1107.58,0.00013698,2]
[335710794,1724458241535,-1107.58,0.00013698,2]
[335710795,1724458241546,-1107.58,0.00013698,2]
[335710796,1724458241559,-1107.58,0.00013698,2]
[335710797,1724458241570,-1107.58,0.00013698,2]
[335710798,1724458241581,-1107.58,0.00013698,2]
[335710799,1724458241592,-500.0,0.00013698,2]
[335710800,1724458241602,-1107.58,0.00013698,2]
[335710801,1724458241613,-1107.58,0.00013698,2]
[335710802,1724458241623,-500.0,0.00013698,2]
[335710803,1724458241636,-1107.58,0.00013698,2]
[335710804,1724458241645,-1107.58,0.00013698,2]
[335710805,1724458241653,-1107.58,0.00013698,2]
[335710806,1724458241664,-1107.58,0.00013698,2]
[335710807,1724458241674,-386.91903079,0.00013698,2]
[335710808,1724458241685,-1089.63,0.00013698,2]
[335710809,1724458241695,-500.0,0.00013698,2]
[335710810,1724458241705,-500.0,0.00013698,2]
[335710811,1724458241714,-500.0,0.00013698,2]
[335710812,1724458241724,-1106.54,0.00013698,2]
[335710813,1724458241733,-500.0,0.00013698,2]
[335710814,1724458241742,-500.0,0.00013698,2]
[335710815,1724458241751,-330.67254587,0.00013698,2]
[335710816,1724458241761,-500.0,0.00013698,2]
[335710817,1724458241770,-515.27,0.00013698,2]
[335710818,1724458241781,-926.6,0.00013698,2]
[335710819,1724458241794,-519.03104898,0.00013698,2]
[335710820,1724458241803,-500.0,0.00013698,2]
[335710821,1724458241812,-500.0,0.00013698,2]
[335710822,1724458241822,-566.43,0.00013698,2]
[335710823,1724458241831,-500.0,0.00013698,2]
[335710824,1724458241841,-500.0,0.00013698,2]
[335710825,1724458241851,-500.0,0.00013698,2]
[335710826,1724458241860,-691.34,0.00013698,2]
[335710827,1724458241870,-946.98,0.00013698,2]
[335710828,1724458241880,-675.51,0.00013698,2]
[335710829,1724458241898,-500.0,0.00013698,2]
[335710830,1724458241908,-776.24,0.00013698,2]
[335710831,1724458241918,-500.0,0.00013698,2]
[335710832,1724458241927,-3160.63,0.00013698,2]
[335710833,1724458241936,-1241.05,0.00013698,2]
[335710834,1724458241945,-500.0,0.00013698,2]
[335710835,1724458241954,-578.43,0.00013698,2]
[335710836,1724458241963,-500.0,0.00013698,2]
[335710837,1724458241972,-836.04,0.00013698,2]
[335710838,1724458241982,-500.0,0.00013698,2]
[335710839,1724458241994,-500.0,0.00013698,2]
[335710840,1724458242005,-500.0,0.00013698,2]
[335710841,1724458242014,-658.32,0.00013698,2]
[335710842,1724458242024,-500.0,0.00013698,2]
[335710843,1724458242033,-500.0,0.00013698,2]
[335710844,1724458242042,-804.33,0.00013698,2]
[335710845,1724458242051,-500.0,0.00013698,2]
[335710846,1724458242060,-500.0,0.00013698,2]
[335710847,1724458242070,-500.0,0.00013698,2]
[335710848,1724458242080,-500.0,0.00013698,2]
[335710849,1724458242089,-500.0,0.00013698,2]
[335710850,1724458242099,-500.0,0.00013698,2]
[335710851,1724458242109,-500.0,0.00013698,2]
[335710852,1724458242120,-806.45,0.00013698,2]
[335710853,1724458242130,-500.0,0.00013698,2]
[335710854,1724458242140,-500.0,0.00013698,2]
[335710855,1724458242150,-856.83,0.00013698,2]
[335710856,1724458242160,-238.68484419,0.00013698,2]
[335710857,1724458242171,-653.79,0.00013698,2]
[335710858,1724458242181,-500.0,0.00013698,2]
[335710859,1724458242190,-535.1,0.00013698,2]
[335710860,1724458242200,-576.91,0.00013698,2]
[335710861,1724458242209,-500.0,0.00013698,2]
[335710862,1724458242219,-580.14,0.00013698,2]
[335710863,1724458242229,-862.88,0.00013698,2]
[335710864,1724458242238,-1045.01,0.00013698,2]
[335710865,1724458242247,-500.0,0.00013698,2]
[335710866,1724458242256,-2286.16,0.00013698,2]
[335710867,1724458242265,-500.0,0.00013698,2]
[335710868,1724458242275,-500.0,0.00013698,2]
[335710869,1724458242284,-500.0,0.00013698,2]
[335710870,1724458242293,-529.35,0.00013698,2]
[335710871,1724458242303,-500.0,0.00013698,2]
[335710872,1724458242312,-500.0,0.00013698,2]
[335710873,1724458242321,-2705.41,0.00013698,2]
[335710874,1724458242331,-505.05010024,0.00013698,2]
[335710875,1724458242340,-500.0,0.00013698,2]
[335710876,1724458242349,-942.05,0.00013698,2]
[335710877,1724458242357,-500.0,0.00013698,2]
[335710878,1724458242366,-500.0,0.00013698,2]
[335710879,1724458242375,-922.56,0.00013698,2]
[335710880,1724458242390,-589.85,0.00013698,2]
[335710881,1724458242399,-500.0,0.00013698,2]
[335710882,1724458242408,-500.0,0.00013698,2]
[335710883,1724458242418,-500.0,0.00013698,2]
[335710884,1724458242427,-782.92,0.00013698,2]
[335710885,1724458242437,-500.0,0.00013698,2]
[335710886,1724458242447,-1450.95,0.00013698,2]
[335710887,1724458242458,-500.0,0.00013698,2]
[335710888,1724458242467,-500.0,0.00013698,2]
[335710889,1724458242477,-1210.55,0.00013698,2]
[335710890,1724458242488,-500.0,0.00013698,2]
[335710891,1724458242497,-500.0,0.00013698,2]
[335710892,1724458242507,-1402.45,0.00013698,2]
[335710893,1724458242516,-1246.06,0.00013698,2]
[335710894,1724458242526,-500.0,0.00013698,2]
[335710895,1724458242537,-500.0,0.00013698,2]
[335710896,1724458242548,-1148.59,0.00013698,2]
[335710897,1724458242558,-500.0,0.00013698,2]
[335710898,1724458242567,-500.0,0.00013698,2]
[335710899,1724458242576,-1562.6,0.00013698,2]
[335710900,1724458242587,-500.0,0.00013698,2]
[335710901,1724458242598,-558.9,0.00013698,2]
[335710902,1724458242609,-573.96242378,0.00013698,2]
[335710903,1724458242619,-616.88290999,0.00013698,2]
[335710904,1724458242629,-702.48,0.00013698,2]
[335710905,1724458242642,-764.54,0.00013698,2]
[335710906,1724458242654,-500.0,0.00013698,2]
[335710907,1724458242663,-500.0,0.00013698,2]
[335710908,1724458242673,-500.0,0.00013698,2]
[335710909,1724458242682,-542.19,0.00013698,2]
[335710910,1724458242691,-500.0,0.00013698,2]
[335710911,1724458242702,-500.0,0.00013698,2]
[335710912,1724458242713,-1524.35,0.00013698,2]
[335710913,1724458242723,-1784.86,0.00013698,2]
[335710914,1724458242733,-500.0,0.00013698,2]
[335710915,1724458242743,-500.0,0.00013698,2]
[335710916,1724458242753,-500.0,0.00013698,2]
[335710917,1724458242763,-500.0,0.00013698,2]
[335710918,1724458242773,-500.0,0.00013698,2]
[335710919,1724458242784,-500.0,0.00013698,2]
[335710921,1724458242795,-500.0,0.00013698,2]
[335710923,1724458242805,-597.48533775,0.00013698,2]
[335710924,1724458242814,-1633.28,0.00013698,2]
[335710925,1724458242825,-2730.81,0.00013698,2]
[335710926,1724458242835,-736.08,0.00013698,2]
[335710927,1724458242845,-866.01,0.00013698,2]
[335710929,1724458242855,-500.0,0.00013698,2]
[335710931,1724458242865,-500.0,0.00013698,2]
[335710932,1724458242875,-576.29,0.00013698,2]
[335710933,1724458242887,-565.32,0.00013698,2]
[335710934,1724458242896,-678.07,0.00013698,2]
[335710935,1724458242905,-898.36,0.00013698,2]
[335710936,1724458242914,-500.0,0.00013698,2]
[335710938,1724458242923,-500.0,0.00013698,2]
[335710939,1724458242934,-500.0,0.00013698,2]
[335710940,1724458242943,-500.0,0.00013698,2]
[335710941,1724458242952,-2062.59,0.00013698,2]
[335710942,1724458242964,-500.0,0.00013698,2]
[335710943,1724458242973,-979.12,0.00013698,2]
[335710945,1724458242983,-500.0,0.00013698,2]
[335710946,1724458242993,-500.0,0.00013698,2]
[335710948,1724458243003,-580.87,0.00013698,2]
[335710951,1724458243013,-547.11247919,0.00013698,2]
[335710953,1724458243023,-501.15990719,0.00013698,2]
[335710956,1724458243032,-500.0,0.00013698,2]
[335710958,1724458243041,-613.5,0.00013698,2]
[335710960,1724458243050,-615.34,0.00013698,2]
[335710962,1724458243060,-790.04,0.00013698,2]
[335710964,1724458243069,-2219.49,0.00013698,2]
[335710966,1724458243078,-760.52,0.00013698,2]
[335710968,1724458243088,-962.63,0.00013698,2]
[335710970,1724458243097,-500.0,0.00013698,2]
[335710972,1724458243106,-590.22036589,0.00013698,2]
[335710974,1724458243116,-500.0,0.00013698,2]
[335710976,1724458243125,-500.0,0.00013698,2]
[335710978,1724458243135,-500.0,0.00013698,2]
[335710980,1724458243144,-500.0,0.00013698,2]
[335710982,1724458243153,-500.0,0.00013698,2]
[335710984,1724458243163,-500.0,0.00013698,2]
[335710986,1724458243172,-500.0,0.00013698,2]
[335710988,1724458243181,-786.98,0.00013698,2]
[335710990,1724458243191,-500.0,0.00013698,2]
[335711009,1724458243353,-500.0,0.00013698,2]
[335711011,1724458243364,-500.0,0.00013698,2]
[335711013,1724458243375,-1288.47,0.00013698,2]
[335711015,1724458243386,-500.0,0.00013698,2]
[335711017,1724458243396,-500.0,0.00013698,2]
[335711019,1724458243406,-2225.96,0.00013698,2]
[335711021,1724458243415,-690.46,0.00013698,2]
[335711023,1724458243424,-819.78,0.00013698,2]
[335711025,1724458243434,-500.0,0.00013698,2]
[335711027,1724458243443,-500.0,0.00013698,2]
[335711030,1724458243453,-1058.51,0.00013698,2]
[335711032,1724458243463,-500.0,0.00013698,2]
[335711035,1724458243472,-500.0,0.00013698,2]
[335711037,1724458243481,-500.0,0.00013698,2]
[335711040,1724458243491,-526.99,0.00013698,2]
[335711042,1724458243501,-500.0,0.00013698,2]
[335711045,1724458243511,-542.21,0.00013698,2]
[335711047,1724458243521,-500.0,0.00013698,2]
[335711049,1724458243532,-500.0,0.00013698,2]
[335711051,1724458243542,-786.92,0.00013698,2]
[335711053,1724458243552,-500.0,0.00013698,2]
[335711055,1724458243563,-1147.06,0.00013698,2]
[335711058,1724458243573,-500.0,0.00013698,2]
[335711060,1724458243582,-626.90033113,0.00013698,2]
[335711062,1724458243592,-500.0,0.00013698,2]
[335711064,1724458243602,-500.0,0.00013698,2]
[335711066,1724458243612,-851.52,0.00013698,2]
[335711068,1724458243621,-500.0,0.00013698,2]
[335711070,1724458243632,-500.0,0.00013698,2]
[335711072,1724458243641,-500.0,0.00013698,2]
[335711074,1724458243650,-619.2,0.00013698,2]
[335711076,1724458243660,-500.0,0.00013698,2]
[335711078,1724458243669,-578.14,0.00013698,2]
[335711080,1724458243679,-500.0,0.00013698,2]
[335711082,1724458243689,-500.0,0.00013698,2]
[335711084,1724458243698,-500.0,0.00013698,2]
[335711086,1724458243708,-1218.19,0.00013698,2]
[335711088,1724458243717,-500.0,0.00013698,2]
[335711090,1724458243727,-626.71,0.00013698,2]
[335711092,1724458243737,-500.0,0.00013698,2]
[335711094,1724458243746,-500.0,0.00013698,2]
[335711096,1724458243756,-500.0,0.00013698,2]
[335711098,1724458243766,-500.0,0.00013698,2]
[335711099,1724458243777,-585.74,0.00013698,2]
[335711101,1724458243787,-500.0,0.00013698,2]
[335711103,1724458243801,-976.72,0.00013698,2]
[335711105,1724458243811,-500.0,0.00013698,2]
[335711107,1724458243820,-500.0,0.00013698,2]
[335711108,1724458243831,-500.0,0.00013698,2]
[335711110,1724458243840,-509.48617632,0.00013698,2]
[335711112,1724458243850,-501.18652113,0.00013698,2]
[335711114,1724458243860,-500.0,0.00013698,2]
[335711115,1724458243872,-1771.02,0.00013698,2]
[335711116,1724458243882,-525.32,0.00013698,2]